bitfinex/quotes_BTCUSD_20240911
["timestamp","ask_amount","ask_price","bid_price","bid_amount"]
[1726073602055,0.002,57183.0,57182.0,0.0053811]
[1726073602279,0.004,57183.0,57182.0,0.1802591]
[1726073602496,0.004,57183.0,57182.0,1.0217791]
[1726073602727,0.57475974,57193.0,57186.0,0.174865]
[1726073602952,0.002,57183.0,57182.0,0.3222611]
[1726073603169,0.002,57183.0,57182.0,0.6720211]
[1726073603381,0.002,57183.0,57182.0,1.0217811]
[1726073603596,0.174859,57189.0,57182.0,0.1483811]
[1726073603827,0.174864,57187.0,57186.0,0.001]
[1726073604053,0.74963974,57189.0,57186.0,0.001]
[1726073604282,0.39992274,57189.0,57186.0,0.001]
[1726073604503,0.174862,57188.0,57186.0,0.001]
[1726073604740,0.22506174,57189.0,57186.0,0.001]
[1726073604950,0.524593,57187.0,57186.0,0.001]
[1726073605187,0.22506174,57189.0,57182.0,0.1473811]
[1726073605188,0.57478474,57189.0,57182.0,0.1473811]
[1726073605448,0.174863,57188.0,57186.0,0.004]
[1726073605681,0.39992074,57189.0,57186.0,0.004]
[1726073605924,0.20228452,57188.0,57186.0,0.004]
[1726073606376,0.02742152,57188.0,57186.0,0.004]
[1726073606641,0.02742152,57188.0,57187.0,0.174864]
[1726073606850,0.02742152,57188.0,57187.0,1.386051]
[1726073607287,0.02742152,57188.0,57187.0,1.036322]
[1726073608171,0.02842152,57188.0,57187.0,1.041322]
[1726073608627,0.02842152,57188.0,57187.0,0.693593]
[1726073609088,0.02842152,57188.0,57187.0,0.0847]
[1726073609355,0.07125575,57188.0,57187.0,0.0847]
[1726073609804,0.59583975,57188.0,57187.0,0.007]
[1726073610261,1.30498478,57188.0,57187.0,0.007]
[1726073611371,1.30498478,57188.0,57182.0,0.0053811]
[1726073611372,0.524631,57183.0,57182.0,0.0053811]
[1726073611591,1.13410923,57183.0,57182.0,0.0053811]
[1726073612277,0.74969274,57183.0,57182.0,0.0053811]
[1726073612742,0.75369274,57183.0,57182.0,0.0053811]
[1726073614365,1.10344674,57183.0,57182.0,0.0053811]
[1726073614593,1.13087052,57183.0,57182.0,0.0053811]
[1726073614815,0.03242378,57183.0,57182.0,0.0053811]
[1726073615048,0.20230078,57183.0,57182.0,0.0053811]
[1726073615477,0.03042378,57183.0,57182.0,0.0053811]
[1726073615893,0.02942378,57183.0,57182.0,0.0053811]
[1726073616118,0.02942378,57183.0,57182.0,0.1802611]
[1726073616119,0.02742378,57183.0,57182.0,0.1802611]
[1726073616350,0.02742378,57183.0,57182.0,0.1812611]
[1726073616567,0.02742378,57183.0,57182.0,0.5310211]
[1726073617037,0.02742378,57183.0,57182.0,0.5310979]
[1726073617519,0.02742378,57183.0,57182.0,0.9624579]
[1726073617750,0.02742378,57183.0,57182.0,0.6166979]
[1726073617994,0.02742378,57183.0,57182.0,0.2669379]
[1726073618676,0.25248552,57183.0,57182.0,0.0920579]
[1726073618893,0.25248552,57183.0,57182.0,0.2669379]
[1726073619328,0.25248552,57183.0,57182.0,0.0920579]
[1726073619547,0.42736252,57183.0,57182.0,0.0104579]
[1726073619992,0.25248552,57183.0,57182.0,0.0104579]
[1726073621322,0.22506174,57183.0,57182.0,0.0104579]
[1726073621592,0.22506174,57183.0,57182.0,0.1853379]
[1726073621847,0.174869,57186.0,57182.0,0.0104579]
[1726073622060,0.22506174,57187.0,57183.0,0.174874]
[1726073622290,0.174868,57186.0,57183.0,0.174874]
[1726073622517,0.22506174,57187.0,57184.0,0.174872]
[1726073622748,0.39992674,57187.0,57184.0,0.174872]
[1726073623177,0.002,57186.0,57184.0,0.0038199]
[1726073623492,0.00396624,57186.0,57184.0,0.0038199]
[1726073623700,0.174871,57185.0,57184.0,0.0038199]
[1726073624128,0.524613,57185.0,57184.0,0.0038199]
[1726073624348,0.874355,57185.0,57184.0,0.0038199]
[1726073624578,0.524613,57185.0,57184.0,0.0038199]
[1726073624801,0.55203647,57185.0,57184.0,0.0048199]
[1726073625018,0.55203647,57185.0,57184.0,0.0038199]
[1726073625214,0.20229447,57185.0,57184.0,0.0038199]
[1726073625465,0.55203647,57185.0,57184.0,0.0058199]
[1726073626368,0.55303647,57185.0,57184.0,0.0058199]
[1726073627052,0.90277847,57185.0,57184.0,0.0058199]
[1726073627489,0.55303647,57185.0,57184.0,0.0058199]
[1726073628153,0.02842347,57185.0,57184.0,0.0058199]
[1726073628340,0.55303647,57185.0,57184.0,0.0058199]
[1726073628623,0.90277847,57185.0,57184.0,0.0058199]
[1726073631445,0.875355,57185.0,57184.0,0.0058199]
[1726073634338,0.525613,57185.0,57184.0,0.0058199]
[1726073634566,0.001,57185.0,57184.0,0.1806939]
[1726073634803,0.001,57185.0,57184.0,0.6965419]
[1726073635257,0.001,57185.0,57184.0,1.0462899]
[1726073635739,0.001,57185.0,57184.0,1.0442899]
[1726073635969,0.001,57185.0,57184.0,0.1489199]
[1726073636219,0.02741982,57185.0,57184.0,1.0462899]
[1726073636441,0.02841982,57185.0,57184.0,1.44620692]
[1726073636655,0.02841982,57185.0,57184.0,1.3940379]
[1726073636872,0.02841982,57185.0,57184.0,1.44620692]
[1726073637153,0.02923882,57185.0,57184.0,1.3940379]
[1726073637407,0.02923882,57185.0,57184.0,1.44620692]
[1726073637854,0.03023882,57185.0,57184.0,2.12968894]
[1726073638095,0.000819,57186.0,57185.0,1.033155]
[1726073638314,0.000819,57186.0,57185.0,1.732639]
[1726073638546,0.000819,57186.0,57185.0,1.78496626]
[1726073639689,0.001819,57186.0,57185.0,1.79496626]
[1726073639907,0.000819,57188.0,57187.0,1.59678]
[1726073640157,0.000819,57188.0,57187.0,2.13918908]
[1726073640406,0.000819,57188.0,57187.0,2.24004753]
[1726073640926,0.02741523,57196.0,57195.0,1.36278]
[1726073641141,0.02741523,57196.0,57195.0,1.38578]
[1726073641380,0.52535264,57208.0,57207.0,0.253703]
[1726073641836,0.22506174,57212.0,57211.0,0.174791]
[1726073642089,0.02741397,57217.0,57208.0,0.349598]
[1726073642090,0.22506174,57217.0,57208.0,0.349598]
[1726073642334,0.22506174,57221.0,57209.0,0.349592]
[1726073642587,0.22506174,57221.0,57211.0,0.686974]
[1726073642588,0.02740907,57212.0,57211.0,0.686974]
[1726073642799,0.22506174,57221.0,57214.0,0.349563]
[1726073643043,0.174767,57219.0,57215.0,0.174777]
[1726073643263,0.22506174,57217.0,57212.0,0.349576]
[1726073643503,0.22506174,57217.0,57215.0,0.174777]
[1726073643764,0.000819,57226.0,57216.0,0.84232864]
[1726073644015,0.000819,57241.0,57216.0,0.84232864]
[1726073644016,0.07860886,57243.0,57242.0,0.349393]
[1726073644316,0.17661466,57272.0,57242.0,0.349393]
[1726073644317,0.07857502,57272.0,57258.0,0.98624]
[1726073644569,0.00034235,57260.0,57259.0,1.21128674]
[1726073645038,0.08370737,57297.0,57259.0,1.21128674]
[1726073645039,0.06699942,57290.0,57268.0,0.349233]
[1726073645046,0.06699942,57290.0,57265.0,0.03]
[1726073645047,0.06775912,57290.0,57269.0,0.0813]
[1726073645296,0.06775912,57290.0,57269.0,0.08409127]
[1726073645525,0.05638839,57289.0,57287.0,0.174558]
[1726073645757,0.05638839,57289.0,57270.0,0.023]
[1726073645993,0.06775912,57290.0,57278.0,0.349169]
[1726073646248,0.06775912,57290.0,57282.0,0.174573]
[1726073646502,0.06775912,57290.0,57276.0,0.023]
[1726073646503,0.07575912,57290.0,57276.0,0.023]
[1726073646747,0.07575912,57290.0,57283.0,0.17457]
[1726073647001,0.07575912,57290.0,57281.0,0.174577]
[1726073647255,0.07575912,57290.0,57281.0,0.023]
[1726073647730,0.07575912,57290.0,57289.0,0.52366]
[1726073647978,0.06275912,57290.0,57289.0,0.174553]
[1726073648202,0.06275912,57290.0,57289.0,0.52366]
[1726073648430,0.06275912,57290.0,57289.0,0.174553]
[1726073648658,0.06275912,57290.0,57289.0,0.54666]
[1726073649122,0.06275912,57290.0,57289.0,0.52366]
[1726073649353,0.06275912,57290.0,57289.0,0.54666]
[1726073649625,0.06275912,57290.0,57289.0,0.55666]
[1726073649859,0.06275912,57290.0,57289.0,0.55366]
[1726073650333,0.00013,57292.0,57291.0,0.546641]
[1726073650809,0.00013,57292.0,57291.0,0.174547]
[1726073651034,0.00013,57292.0,57291.0,0.523641]
[1726073651269,0.00013,57292.0,57291.0,1.3328033]
[1726073651572,0.00013,57292.0,57291.0,1.6818973]
[1726073651813,0.00021155,57294.0,57293.0,1.9626189]
[1726073652059,0.00513235,57297.0,57293.0,1.9626189]
[1726073652060,0.00513235,57297.0,57296.0,1.251724]
[1726073652286,0.5379583,57314.0,57296.0,1.251724]
[1726073652287,0.01260566,57314.0,57304.0,0.872537]
[1726073652558,0.01260566,57314.0,57313.0,1.6201099]
[1726073652803,0.0001,57319.0,57318.0,0.43967421]
[1726073653053,0.01,57324.0,57323.0,1.22115]
[1726073653298,0.01,57324.0,57323.0,0.87225]
[1726073653523,0.02000296,57331.0,57319.0,0.0785]
[1726073653524,0.00025579,57330.0,57319.0,0.0785]
[1726073653760,0.02025875,57331.0,57330.0,0.174428]
[1726073654015,0.00025579,57328.0,57319.0,0.0785]
[1726073654266,0.02000296,57331.0,57314.0,0.1]
[1726073654267,0.00025579,57323.0,57314.0,0.1]
[1726073654718,0.00025579,57323.0,57322.0,0.174453]
[1726073654948,0.02000296,57331.0,57322.0,0.174453]
[1726073654949,0.00025579,57325.0,57322.0,0.0174453]
[1726073655430,0.00025579,57325.0,57324.0,0.174447]
[1726073655656,0.00025579,57325.0,57324.0,0.197447]
[1726073655890,0.00025579,57325.0,57324.0,0.546341]
[1726073656119,0.02000296,57331.0,57330.0,0.523285]
[1726073656350,0.02025875,57331.0,57330.0,0.0753285]
[1726073656569,0.02025875,57331.0,57330.0,0.023]
[1726073656824,0.02000296,57331.0,57330.0,0.023]
[1726073657070,0.02025875,57331.0,57330.0,0.197428]
[1726073657321,0.02025875,57331.0,57330.0,0.023]
[1726073657806,0.02000296,57331.0,57330.0,0.174428]
[1726073658046,0.0001,57339.0,57331.0,0.023]
[1726073658284,0.0001,57339.0,57337.0,0.023]
[1726073658506,0.0001,57339.0,57338.0,0.546212]
[1726073659297,0.0001,57339.0,57338.0,1.3337699]
[1726073659558,0.01714399,57348.0,57347.0,1.2706349]
[1726073659793,0.01714399,57348.0,57347.0,2.09520639]
[1726073660029,0.01714399,57348.0,57347.0,2.19620639]
[1726073660492,0.01714399,57348.0,57347.0,1.75645239]
[1726073660723,0.01714399,57348.0,57347.0,1.78645239]
[1726073660951,0.01714399,57348.0,57347.0,1.84645239]
[1726073661661,0.01714399,57348.0,57347.0,1.83945239]
[1726073661878,0.01714399,57348.0,57347.0,1.86945239]
[1726073662099,0.01714399,57348.0,57347.0,1.88345239]
[1726073662344,0.00021134,57350.0,57349.0,1.243593]
[1726073662596,0.00021134,57350.0,57349.0,0.64914242]
[1726073662853,0.00021134,57350.0,57349.0,1.09788342]
[1726073663095,0.00021134,57350.0,57349.0,1.88536542]
[1726073663567,0.00021127,57368.0,57358.0,0.871717]
[1726073663801,0.00021127,57368.0,57358.0,0.971717]
[1726073664078,0.00021127,57368.0,57367.0,0.197316]
[1726073664337,0.00021127,57368.0,57367.0,0.174316]
[1726073664578,0.31611898,57381.0,57367.0,0.123]
[1726073664800,0.31611898,57381.0,57355.0,0.03]
[1726073664801,0.0002,57382.0,57369.0,0.023]
[1726073665036,0.0002,57382.0,57367.0,0.174314]
[1726073665266,0.0002,57382.0,57361.0,0.348667]
[1726073665267,0.348573,57377.0,57368.0,0.2147424]
[1726073665524,0.08967008,57383.0,57368.0,0.0404314]
[1726073665767,0.09163632,57383.0,57368.0,0.023]
[1726073665988,0.00937008,57383.0,57374.0,0.03]
[1726073666220,0.007208,57390.0,57389.0,0.520747]
[1726073666443,0.007208,57390.0,57389.0,1.2698177]
[1726073666675,0.007208,57390.0,57389.0,0.9213197]
[1726073667176,0.007208,57390.0,57389.0,0.9443197]
[1726073667452,0.348391,57407.0,57389.0,0.9443197]
[1726073667453,0.007208,57413.0,57402.0,1.24221]
[1726073667715,0.007208,57413.0,57402.0,1.5809599]
[1726073668045,0.007208,57413.0,57412.0,0.870897]
[1726073668321,0.00015625,57422.0,57421.0,0.89376]
[1726073668543,0.00015625,57422.0,57412.0,0.1]
[1726073668544,0.14805625,57422.0,57412.0,0.1]
[1726073668770,0.14805625,57422.0,57396.0,0.0034835]
[1726073668771,0.45680615,57422.0,57396.0,0.0034835]
[1726073668995,0.174167,57417.0,57405.0,0.1742]
[1726073669235,0.27413813,57422.0,57411.0,0.52535264]
[1726073669468,0.01795867,57434.0,57433.0,1.096677]
[1726073669715,0.00013,57447.0,57443.0,0.348171]
[1726073669952,0.00013,57447.0,57443.0,1.43507826]
[1726073670188,0.00013,57447.0,57443.0,0.605256]
[1726073670451,0.00013,57447.0,57443.0,0.06]
[1726073670678,0.00013,57447.0,57443.0,0.682256]
[1726073671157,0.00013,57447.0,57443.0,1.030427]
[1726073671625,0.18155694,57459.0,57450.0,0.06]
[1726073671626,0.00507466,57451.0,57450.0,0.06]
[1726073671869,0.17913566,57451.0,57450.0,0.083]
[1726073672095,0.00751894,57459.0,57453.0,0.257055]
[1726073672318,0.00751894,57459.0,57453.0,0.35772521]
[1726073672543,0.52535264,57476.0,57469.0,0.582019]
[1726073672544,0.07101913,57470.0,57469.0,0.582019]
[1726073673003,0.07101913,57470.0,57469.0,1.278045]
[1726073673236,0.07101913,57470.0,57469.0,0.960032]
[1726073673462,0.07101913,57470.0,57469.0,1.060032]
[1726073673691,0.07101913,57470.0,57469.0,1.92937541]
[1726073673921,0.07101913,57470.0,57469.0,1.58136241]
[1726073674160,0.07101913,57470.0,57469.0,1.60436241]
[1726073674389,0.00063258,57481.0,57474.0,1.83910151]
[1726073674617,2.8768118,57477.0,57476.0,0.671956]
[1726073674852,2.8768118,57477.0,57476.0,1.7098696]
[1726073675080,2.8768118,57477.0,57476.0,1.88190042]
[1726073675309,2.84229525,57477.0,57476.0,2.1178406]
[1726073675576,2.45833593,57477.0,57476.0,1.99180918]
[1726073675804,2.45833593,57477.0,57476.0,1.99280918]
[1726073676064,1.2614628,57477.0,57476.0,2.84894169]
[1726073676296,0.0002108,57498.0,57476.0,2.84894169]
[1726073676297,0.02354292,57487.0,57486.0,1.752725]
[1726073676529,0.0002108,57498.0,57497.0,1.02061]
[1726073676788,8e-07,57498.0,57497.0,2.84824369]
[1726073677039,0.52535264,57521.0,57508.0,0.672665]
[1726073677264,0.54757584,57520.0,57508.0,1.54515918]
[1726073677502,0.0222232,57520.0,57508.0,1.99293618]
[1726073677739,0.0222232,57520.0,57515.0,1.367072]
[1726073677971,0.0222232,57520.0,57515.0,1.467072]
[1726073678193,0.0222232,57520.0,57515.0,1.64301218]
[1726073678425,0.06993828,57518.0,57517.0,1.019307]
[1726073678711,0.06993828,57518.0,57517.0,1.64497018]
[1726073678934,0.0021496,57549.0,57517.0,1.64497018]
[1726073678935,0.24477692,57552.0,57545.0,0.05464685]
[1726073679168,0.24477692,57552.0,57537.0,0.3476]
[1726073679169,0.24477692,57552.0,57546.0,0.05464685]
[1726073679398,0.173786,57542.0,57541.0,0.05464685]
[1726073679631,0.50816151,57550.0,57540.0,0.05464685]
[1726073679632,0.347542,57547.0,57540.0,0.05464685]
[1726073679858,0.521349,57543.0,57542.0,0.05464685]
[1726073680077,0.347566,57543.0,57538.0,0.03]
[1726073680332,0.347566,57543.0,57540.0,0.05364685]
[1726073680333,0.50816151,57543.0,57540.0,0.05364685]
[1726073680579,0.50816151,57543.0,57522.0,0.03]
[1726073680580,0.50816151,57543.0,57536.0,0.05364685]
[1726073680798,0.0782,57542.0,57539.0,0.029]
[1726073681020,0.173801,57537.0,57536.0,0.05364685]
[1726073681249,0.521403,57537.0,57536.0,0.05364685]
[1726073681486,0.521403,57537.0,57523.0,0.273842]
[1726073681487,0.521412,57536.0,57535.0,0.05364685]
[1726073681722,0.17381,57534.0,57533.0,0.05364685]
[1726073682010,0.34762,57534.0,57533.0,0.05364685]
[1726073682239,0.34762,57534.0,57515.0,0.347732]
[1726073682240,0.34765,57529.0,57528.0,0.029]
[1726073682472,0.58376151,57529.0,57521.0,0.05264685]
[1726073682704,0.347663,57527.0,57525.0,0.028]
[1726073682936,0.58376151,57529.0,57521.0,0.02464685]
[1726073682937,0.58376151,57529.0,57521.0,0.05264685]
[1726073683171,0.173837,57525.0,57524.0,0.028]
[1726073683396,0.58376151,57529.0,57510.0,0.00347688]
[1726073683397,0.50816151,57522.0,57510.0,0.05264685]
[1726073683627,0.50816151,57511.0,57502.0,0.05264685]
[1726073683856,0.0831,57510.0,57503.0,0.52535264]
[1726073684087,0.50816151,57503.0,57499.0,0.028]
[1726073684312,0.50816151,57503.0,57487.0,0.52535264]
[1726073684313,0.05819644,57502.0,57492.0,0.05479645]
[1726073684543,0.173928,57495.0,57494.0,0.0330584]
[1726073684762,0.86964,57495.0,57494.0,0.0050584]
[1726073684997,1.217496,57495.0,57494.0,0.0050584]
[1726073685256,0.03,57494.0,57470.0,0.05264685]
[1726073685503,0.05,57505.0,57465.0,0.05264685]
[1726073685504,0.52201,57470.0,57465.0,0.05264685]
[1726073685733,0.52201,57470.0,57458.0,0.52535264]
[1726073685734,0.870017,57470.0,57462.0,0.028]
[1726073685951,0.870017,57470.0,57464.0,0.028]
[1726073686189,0.84402,57470.0,57464.0,0.028]
[1726073686411,0.50816151,57471.0,57446.0,0.007208]
[1726073686412,0.348037,57465.0,57456.0,0.05264685]
[1726073686644,0.00196624,57464.0,57458.0,0.028]
[1726073686869,0.85613851,57476.0,57467.0,0.05264685]
[1726073687139,0.85613851,57476.0,57452.0,0.348116]
[1726073687140,0.348019,57468.0,57465.0,0.028]
[1726073687381,0.239809,57468.0,57467.0,0.028]
[1726073687625,0.0658,57468.0,57467.0,0.028]
[1726073687869,0.065,57468.0,57467.0,0.05264685]
[1726073688107,0.000715,57470.0,57469.0,0.92267885]
[1726073688331,0.000615,57470.0,57469.0,0.57466585]
[1726073688553,0.000615,57470.0,57453.0,0.06]
[1726073688554,0.0831,57480.0,57478.0,0.019]
[1726073688781,0.0823,57480.0,57478.0,0.019]
[1726073689004,0.347953,57479.0,57476.0,0.019]
[1726073689252,0.0823,57480.0,57478.0,0.019]
[1726073689480,0.0822,57480.0,57479.0,0.21762285]
[1726073689777,0.0815,57480.0,57479.0,0.56557585]
[1726073690002,0.4445,57491.0,57484.0,0.04364685]
[1726073690222,0.173932,57494.0,57485.0,0.04364685]
[1726073690447,0.173826,57496.0,57487.0,0.173951]
[1726073690684,0.358801,57505.0,57481.0,0.347938]
[1726073690685,0.03,57522.0,57495.0,0.04364685]
[1726073690924,0.0649,57507.0,57502.0,0.173906]
[1726073691151,0.0648,57507.0,57502.0,0.173905]
[1726073691373,0.0648,57507.0,57490.0,0.35136083]
[1726073691374,0.0648,57507.0,57501.0,0.347818]
[1726073691589,0.0648,57507.0,57501.0,0.04264685]
[1726073692264,0.0648,57507.0,57489.0,0.023]
[1726073692265,0.0708,57507.0,57496.0,0.018]
[1726073692484,0.0708,57507.0,57470.0,0.03]
[1726073692485,0.173923,57497.0,57493.0,0.018]
[1726073692708,0.17393,57495.0,57492.0,0.018]
[1726073692932,0.0708,57507.0,57498.0,0.04264685]
[1726073693387,0.0796,57506.0,57500.0,0.173911]
[1726073693642,0.173902,57504.0,57498.0,0.04264685]
[1726073693857,0.0796,57506.0,57498.0,0.04264685]
[1726073693858,0.173906,57502.0,57501.0,0.003]
[1726073694077,0.173905,57503.0,57498.0,0.04264685]
[1726073694296,0.50816151,57499.0,57498.0,0.018]
[1726073694527,0.0796,57506.0,57498.0,0.018]
[1726073694528,0.50816151,57506.0,57505.0,0.39044185]
[1726073694753,0.50816151,57506.0,57487.0,0.0498]
[1726073694754,0.0601,57522.0,57508.0,0.04264685]
[1726073694984,0.0601,57522.0,57508.0,0.04164685]
[1726073695222,0.0601,57522.0,57514.0,0.04164685]
[1726073695458,0.0601,57522.0,57516.0,0.347727]
[1726073695704,0.0601,57522.0,57521.0,0.521548]
[1726073695907,0.0601,57522.0,57521.0,0.173849]
[1726073697055,0.0601,57522.0,57521.0,0.869247]
[1726073697269,0.0601,57522.0,57520.0,0.04064685]
[1726073697773,0.51031111,57526.0,57518.0,0.017]
[1726073698005,0.51031111,57526.0,57521.0,0.014]
[1726073698006,0.174847,57522.0,57521.0,0.014]
[1726073698225,0.001,57522.0,57513.0,0.017]
[1726073698450,0.173868,57515.0,57510.0,0.017]
[1726073698674,0.00196624,57519.0,57510.0,0.017]
[1726073698898,0.347724,57517.0,57514.0,0.017]
[1726073699116,0.173862,57517.0,57514.0,0.017]
[1726073699344,0.173865,57516.0,57514.0,0.017]
[1726073699571,0.347709,57520.0,57511.0,0.190878]
[1726073699790,0.001819,57522.0,57513.0,0.190873]
[1726073700006,0.001819,57522.0,57513.0,0.017]
[1726073700227,0.347712,57519.0,57513.0,0.017]
[1726073700454,0.00196624,57518.0,57513.0,0.017]
[1726073700676,0.001,57515.0,57513.0,0.017]
[1726073700898,0.001,57515.0,57510.0,0.012]
[1726073700899,0.0652,57514.0,57510.0,0.017]
[1726073701100,0.239071,57514.0,57509.0,0.173885]
[1726073701341,0.239071,57514.0,57513.0,0.017]
[1726073701342,0.0652,57514.0,57513.0,0.017]
[1726073701549,0.000819,57522.0,57513.0,0.04064685]
[1726073701747,0.066019,57522.0,57521.0,0.173849]
[1726073701953,0.066019,57522.0,57521.0,0.521548]
[1726073702080,0.066019,57522.0,57521.0,0.869247]
[1726073702284,0.066019,57522.0,57518.0,0.04064685]
[1726073702285,0.066019,57522.0,57518.0,0.017]
[1726073702486,0.06798524,57522.0,57518.0,0.017]
[1726073702710,0.347706,57520.0,57514.0,0.017]
[1726073702913,0.00196624,57519.0,57507.0,0.02364685]
[1726073703118,0.00196624,57519.0,57511.0,0.52535264]
[1726073703314,0.00196624,57519.0,57489.0,0.347887]
[1726073703315,0.000819,57522.0,57516.0,0.04064685]
[1726073703519,0.000819,57522.0,57517.0,0.017]
[1726073703738,0.08276624,57521.0,57513.0,0.017]
[1726073703975,0.004,57519.0,57512.0,0.04064685]
[1726073704203,0.01432224,57518.0,57517.0,0.56223085]
[1726073704406,0.01432224,57518.0,57517.0,0.04064685]
[1726073704626,0.01432224,57518.0,57517.0,0.018]
[1726073704831,0.01830522,57554.0,57519.0,0.017]
[1726073705046,0.08667129,57595.0,57517.0,0.25614018]
[1726073705047,0.0561,57579.0,57578.0,0.37709896]
[1726073705319,0.04336,57600.0,57578.0,0.37709896]
[1726073705320,0.0012254,57597.0,57581.0,0.24405981]
[1726073705545,0.0012254,57597.0,57587.0,2.20140332]
[1726073705775,0.0012254,57597.0,57587.0,2.99600332]
[1726073705986,0.0012254,57597.0,57587.0,2.27240784]
[1726073706211,0.0162127,57588.0,57587.0,1.56342084]
[1726073706426,0.0162127,57588.0,57587.0,1.40255933]
[1726073707082,0.0162127,57588.0,57587.0,1.42555933]
[1726073707318,0.0162127,57588.0,57587.0,1.42530443]
[1726073707541,0.0172127,57588.0,57587.0,1.08709567]
[1726073707765,0.0172127,57588.0,57587.0,1.07509567]
[1726073707989,0.0172127,57588.0,57587.0,0.33124619]
[1726073708204,0.0172127,57588.0,57587.0,0.67854619]
[1726073708413,0.0172127,57588.0,57587.0,0.33124619]
[1726073708667,0.0182127,57588.0,57587.0,0.34524619]
[1726073709369,0.0182127,57588.0,57587.0,0.014]
[1726073709370,0.01876322,57588.0,57587.0,0.014]
[1726073709588,0.01876322,57588.0,57587.0,0.05148319]
[1726073709798,0.028904,57588.0,57587.0,0.22513319]
[1726073710020,0.0162127,57588.0,57587.0,0.03748319]
[1726073710237,0.0172127,57588.0,57587.0,0.04948319]
[1726073710456,0.02685545,57588.0,57587.0,0.93518267]
[1726073710663,0.0162127,57588.0,57587.0,0.95818267]
[1726073710868,0.0172127,57588.0,57587.0,0.97218267]
[1726073711082,0.0162127,57588.0,57587.0,0.95818267]
[1726073711510,0.0202127,57588.0,57587.0,0.92873319]
[1726073711721,0.0162127,57588.0,57587.0,0.58143319]
[1726073711921,0.0162127,57588.0,57587.0,0.21113319]
[1726073712140,0.0162127,57588.0,57587.0,0.90573319]
[1726073712349,0.0162127,57588.0,57587.0,0.55843319]
[1726073712556,0.0162127,57588.0,57587.0,0.03748319]
[1726073712770,0.0162127,57588.0,57587.0,0.21113319]
[1726073713033,0.0170317,57588.0,57587.0,0.90573319]
[1726073713481,0.0021496,57594.0,57593.0,0.58782867]
[1726073713697,0.0021496,57594.0,57593.0,1.28235667]
[1726073713907,0.0021496,57594.0,57593.0,1.30535667]
[1726073714330,0.0050584,57598.0,57597.0,0.8681]
[1726073714534,0.0050584,57598.0,57597.0,0.90558319]
[1726073714746,0.0050584,57598.0,57597.0,1.30527267]
[1726073715171,0.04336,57600.0,57598.0,1.27580219]
[1726073715413,0.04336,57600.0,57598.0,1.27780219]
[1726073715779,0.04336,57600.0,57598.0,1.27580219]
[1726073716013,0.04336,57600.0,57598.0,0.90556819]
[1726073716219,0.04336,57600.0,57598.0,0.21110019]
[1726073716684,0.04336,57600.0,57598.0,0.03748319]
[1726073716685,0.00065052,57599.0,57598.0,0.03748319]
[1726073717237,0.0001,57599.0,57598.0,0.59125533]
[1726073717455,0.0001,57599.0,57598.0,1.28199676]
[1726073717647,0.0001,57599.0,57598.0,1.25254728]
[1726073718046,0.01915023,57606.0,57598.0,1.25254728]
[1726073718047,0.01915023,57606.0,57601.0,0.520824]
[1726073718251,0.01915023,57606.0,57600.0,0.10654]
[1726073718252,0.00055052,57601.0,57600.0,0.10654]
[1726073718454,0.00055052,57601.0,57600.0,0.14376828]
[1726073718890,0.17415852,57601.0,57600.0,0.10654]
[1726073719025,0.17415852,57601.0,57600.0,0.14376828]
[1726073719251,0.00055052,57601.0,57600.0,0.14376828]
[1726073719897,0.17415852,57601.0,57600.0,0.14376828]
[1726073720098,0.00055052,57601.0,57600.0,0.14676828]
[1726073720361,0.17415852,57601.0,57600.0,0.14676828]
[1726073720581,0.08145052,57601.0,57600.0,0.10954]
[1726073720790,0.08145052,57601.0,57600.0,0.14676828]
[1726073720791,0.25505852,57601.0,57600.0,0.14676828]
[1726073720954,0.08145052,57601.0,57600.0,0.14676828]
[1726073721365,0.08145052,57601.0,57600.0,0.14376828]
[1726073721826,0.08145052,57601.0,57600.0,0.15076828]
[1726073721989,0.08145052,57601.0,57600.0,0.14376828]
[1726073722189,0.08145052,57601.0,57600.0,0.33137928]
[1726073722396,0.00021042,57602.0,57601.0,0.11602828]
[1726073722667,0.00021042,57602.0,57601.0,2.30681205]
[1726073722902,2.3e-07,57606.0,57605.0,0.99465776]
[1726073723165,0.0001,57619.0,57605.0,0.99465776]
[1726073723166,0.0001,57619.0,57614.0,0.93451976]
[1726073723370,0.0001,57619.0,57614.0,2.76003245]
[1726073723588,0.0001,57619.0,57614.0,3.10716945]
[1726073723795,0.0001,57619.0,57614.0,2.76103245]
[1726073724031,0.0001,57619.0,57614.0,2.31575527]
[1726073724293,0.0001,57619.0,57614.0,1.83916879]
[1726073724512,0.0001,57619.0,57614.0,1.86861827]
[1726073724723,0.0001,57619.0,57614.0,2.39169545]
[1726073724930,0.0001,57619.0,57614.0,2.21575527]
[1726073725156,0.52545264,57639.0,57627.0,0.90487528]
[1726073725157,0.00136552,57637.0,57627.0,0.90487528]
[1726073725566,0.00136552,57637.0,57627.0,1.25193428]
[1726073725777,0.00136552,57637.0,57627.0,0.90487528]
[1726073725975,0.00136552,57637.0,57627.0,1.25193428]
[1726073726177,0.08055052,57634.0,57627.0,0.90487528]
[1726073726665,0.08,57634.0,57627.0,1.25193428]
[1726073726887,0.08,57634.0,57627.0,0.90487528]
[1726073727076,0.08,57634.0,57627.0,1.25193428]
[1726073727533,0.08,57634.0,57627.0,1.31812932]
[1726073728114,0.08,57634.0,57627.0,1.25167984]
[1726073728302,0.08,57634.0,57627.0,1.63573884]
[1726073728747,0.08,57634.0,57627.0,1.28867984]
[1726073729437,0.02154614,57640.0,57639.0,0.02364685]
[1726073729916,0.02154614,57640.0,57639.0,1.9979527]
[1726073730204,0.02154614,57640.0,57639.0,0.90469528]
[1726073730426,0.02154614,57640.0,57639.0,1.25168228]
[1726073730661,0.02154614,57640.0,57639.0,0.90469528]
[1726073731139,0.02154614,57640.0,57639.0,0.55770828]
[1726073731391,0.02154614,57640.0,57639.0,0.91269528]
[1726073731600,0.02154614,57640.0,57639.0,0.55770828]
[1726073731831,0.02154614,57640.0,57639.0,0.91669528]
[1726073732099,0.02154614,57640.0,57636.0,0.347004]
[1726073732100,0.02154614,57640.0,57636.0,0.38423228]
[1726073732305,0.02154614,57640.0,57639.0,0.03722828]
[1726073732528,0.02154614,57640.0,57639.0,0.05122828]